[Event "German Bundesliga 2022-23"]
[Site "Germany"]
[Date "2022.10.23"]
[Round "2.5"]
[White "Kramer, Julian"]
[Black "Kasimdzhanov, Rustam"]
[Result "0-1"]
[ECO "B82"]
[WhiteElo "2467"]
[BlackElo "2670"]
[Annotator "RC"]
[PlyCount "70"]
[EventDate "2022.10.21"]
[EventType "team-tourn"]
[EventCountry "GER"]
[SourceTitle "playchess.com"]
[Source "ChessBase"]
[SourceQuality "1"]
[TimeControl "40/6000+30:3000+30"]

1. e4 {[%emt 0:00:04]} c5 {[%emt 0:00:04]} 2. Nf3 {[%emt 0:00:09]} d6 {[%emt 0:00:04]} 3. d4 {[%emt 0:00:05]} cxd4 {[%emt 0:00:04]} 4. Nxd4 {[%emt 0:00:04]} Nf6 {[%emt 0:00:06]} 5. Nc3 {[%emt 0:00:04]} a6 {[%emt 0:00:07]} 6. a4 {[%emt 0:00:14]} e6 {[%emt 0:00:44]} 7. f4 {[%emt 0:01:04]} Nc6 {[%emt 0:05:05]} 8. Be3 {[%emt 0:03:44]} Qc7 {[%emt 0:08:03]} 9. Nxc6 {[%emt 0:15:59]} bxc6 {[%emt 0:04:18]} 10. Qf3 {[%emt 0:00:20]} Rb8 {[%emt 0:08:25]} 11. O-O-O {[%emt 0:02:39]} d5 {[%emt 0:06:54]} 12. Bd4 {[%emt 0:07:24]} Rb4 {[%emt 0:02:31]} 13. b3 {[%emt 0:06:32]} Be7 {[%emt 0:03:45]} 14. exd5 {[%emt 0:08:47]} cxd5 {[%emt 0:08:45]} 15. Na2 {[%emt 0:09:53]} Rxd4 {[%emt 0:07:45]} 16. Rxd4 {[%emt 0:00:06]} O-O {[%emt 0:00:15]} 17. Qc3 {[%emt 0:08:50]} Qa7 {[%emt 0:01:48]} 18. Be2 {[%emt 0:04:44]} Ne4 {[%emt 0:07:02]} 19. Qe3 {[%emt 0:02:16]} Bc5 {[%emt 0:05:13]} 20. Rhd1 {[%emt 0:00:22]} Bd7 {[%emt 0:02:17]} 21. Nc3 {[%emt 0:08:57]} Nd6 {[%emt 0:09:27]} 22. g4 {[%emt 0:02:23]} Rc8 {[%emt 0:04:39]} 23. Kb2 {[%emt 0:01:51]} Qb6 {[%emt 0:06:05]} 24. h3 {[%emt 0:05:16]} h6 {[%emt 0:00:50]} 25. Bf1 {[%emt 0:02:55]} Nb7 {[%emt 0:02:55]} 26. f5 {[%emt 0:04:06]} Na5 {[%emt 0:02:28]} 27. fxe6 {[%emt 0:00:15]} fxe6 {[%emt 0:02:34]} 28. Qd3 {[%emt 0:02:54]} Nc6 {[%emt 0:03:35]} 29. Rf4 {[%emt 0:02:36]} Nb4 {[%emt 0:00:37]} 30. Qf3 {[%emt 0:04:33]} Bd6 {[%emt 0:01:59]} 31. Rdd4 {[%emt 0:02:55]} a5 {[%emt 0:02:37]} 32. Bd3 {[%emt 0:01:27]} Qc5 {[%emt 0:02:27]} 33. Bg6 {[%emt 0:01:36]} Nc6 {[%emt 0:02:16]} 34. Rf7 {[%emt 0:01:50]} Qxd4 {[%emt 0:01:01]} 35. Rxd7 {[%emt 0:00:16]} Ne5 {[%emt 0:00:13]} 0-1

[Event "German Bundesliga 2022-23"]
[Site "Germany"]
[Date "2022.10.23"]
[Round "2.6"]
[White "Bacrot, Etienne"]
[Black "Sebastian, Dirk"]
[Result "1-0"]
[ECO "A57"]
[WhiteElo "2646"]
[BlackElo "2435"]
[Annotator "RC"]
[PlyCount "47"]
[EventDate "2022.10.21"]
[EventType "team-tourn"]
[EventCountry "GER"]
[SourceTitle "playchess.com"]
[Source "ChessBase"]
[SourceQuality "1"]
[TimeControl "40/6000+30:3000+30"]

1. d4 {[%emt 0:00:46]} Nf6 {[%emt 0:00:16]} 2. c4 {[%emt 0:00:27]} c5 {[%emt 0:00:13]} 3. d5 {[%emt 0:00:00]} b5 {[%emt 0:00:05]} 4. cxb5 {[%emt 0:00:06]} a6 {[%emt 0:00:14]} 5. e3 axb5 {[%emt 0:00:55]} 6. Bxb5 {[%emt 0:00:40]} Qa5+ {[%emt 0:00:20]} 7. Nc3 {[%emt 0:00:20]} Bb7 {[%emt 0:00:45]} 8. Bd2 {[%emt 0:00:54]} Qb6 {[%emt 0:00:48]} 9. Nf3 {[%emt 0:00:56]} Nxd5 {[%emt 0:02:15]} 10. a4 {[%emt 0:00:25]} e6 {[%emt 0:00:41]} 11. O-O {[%emt 0:00:41]} Be7 {[%emt 0:00:45]} 12. e4 {[%emt 0:00:10]} Nb4 {[%emt 0:03:37]} 13. Bf4 {[%emt 0:00:28]} Qd8 {[%emt 0:11:41]} 14. Qd2 {[%emt 0:30:50]} O-O {[%emt 0:07:22]} 15. Rad1 {[%emt 0:02:52]} d5 {[%emt 0:04:33]} 16. exd5 {[%emt 0:00:05]} exd5 {[%emt 0:02:28]} 17. Rfe1 {[%emt 0:00:05]} Bf6 {[%emt 0:39:12]} 18. Qc1 {[%emt 0:04:57]} Qb6 {[%emt 0:04:44]} 19. Ne5 {[%emt 0:00:07]} c4 {[%emt 0:10:36]} 20. Be3 {[%emt 0:01:58]} Qc7 {[%emt 0:01:21]} 21. Ng4 {[%emt 0:01:10]} Be7 {[%emt 0:03:52]} 22. Bd4 {[%emt 0:03:35]} f5 {[%emt 0:07:06]} 23. Qe3 {[%emt 0:00:54]} fxg4 {[%emt 0:02:13]} 24. Qxe7 {[%emt 0:00:19]} 1-0

[Event "German Bundesliga 2022-23"]
[Site "Germany"]
[Date "2022.10.23"]
[Round "2.6"]
[White "Vrolijk, Liam"]
[Black "Palac, Mladen"]
[Result "1-0"]
[ECO "A06"]
[WhiteElo "2483"]
[BlackElo "2516"]
[Annotator "TA"]
[PlyCount "171"]
[EventDate "2022.10.21"]
[EventType "team-tourn"]
[EventCountry "GER"]
[SourceTitle "playchess.com"]
[Source "ChessBase"]
[SourceQuality "1"]
[TimeControl "40/6000+30:3000+30"]

{[%evp 21,171,7,28,17,26,25,33,25,50,20,22,22,39,20,83,41,41,41,57,58,47,39,58,62,69,67,81,32,34,27,7,11,12,8,12,16,60,16,19,14,28,13,51,50,45,35,40,0,4,0,0,0,0,0,0,0,0,0,0,0,8,-33,-33,-33,-32,-55,12,12,12,0,0,0,0,0,0,0,0,0,0,0,0,0,0,0,0,0,0,0,0,0,0,0,0,0,0,0,0,0,0,0,0,0,0,0,0,0,0,0,0,0,0,0,0,0,29965,29966,29966,29968,29968,0,29970,29971,29970,29971,29971,29972,29962,29973,29980,29981,29982,29983,29982,0,29984,29985,29985,29986,29986,29987,29987,29988,29993,29994,29995,29991,29995,29986,29993,29994,29994,29995]} 1. Nf3 {[%emt 0:02:07]} d5 {[%emt 0:00:16]} 2. e3 {[%emt 0:00:10]} Nf6 {[%emt 0:00:18]} 3. c4 {[%emt 0:00:13]} e6 {[%emt 0:00:15]} 4. Nc3 {[%emt 0:00:10]} b6 {[%emt 0:03:06]} 5. cxd5 {[%emt 0:00:25]} exd5 {[%emt 0:00:03]} 6. g3 {[%emt 0:00:12]} Bb7 {[%emt 0:04:56]} 7. Bg2 {[%emt 0:01:23]} Nbd7 {[%emt 0:01:16]} 8. O-O {[%emt 0:01:16]} Bd6 {[%emt 0:03:44]} 9. b3 {[%emt 0:03:50]} O-O {[%emt 0:01:45]} 10. Bb2 {[%emt 0:04:05]} Re8 {[%emt 0:00:15]} 11. Rc1 {[%emt 0:05:08]} a6 {[%emt 0:03:42]} 12. Re1 {[%emt 0:01:02]} Ne5 {[%emt 0:10:24]} 13. Nxe5 {[%emt 0:17:30]} Bxe5 {[%emt 0:00:15]} 14. Qc2 {[%emt 0:02:38]} Rc8 {[%emt 0:18:45]} 15. Ne2 {[%emt 0:02:52]} Bd6 {[%emt 0:01:00]} 16. Nf4 {[%emt 0:07:46]} c6 {[%emt 0:00:21]} 17. Qf5 {[%emt 0:04:23]} Nd7 {[%emt 0:02:38]} (17... Ne4 $11 {remains equal.}) 18. Nh5 {[%emt 0:12:15]} Be5 {[%emt 0:07:13]} 19. Bxe5 {[%emt 0:04:13]} Rxe5 {[%emt 0:02:24]} 20. Qg4 {[%emt 0:00:09]} Rg5 {[%emt 0:00:12]} 21. Qe2 {[%emt 0:01:44]} g6 {[%emt 0:00:15]} 22. Nf4 {[%emt 0:01:36]} Re5 {[%emt 0:00:10]} 23. b4 {[%emt 0:04:46]} Nf6 {[%emt 0:04:02]} 24. d3 {[%emt 0:00:46]} ({White should try} 24. d4 $16 Re7 25. a4) 24... d4 $14 {[%emt 0:01:10]} 25. Qb2 {[%emt 0:05:06]} dxe3 {[%emt 0:00:33]} (25... g5 26. Nh3 $16 (26. Ne2 dxe3 27. fxe3 Qd6 $16)) 26. Rxe3 {[%emt 0:01:33]} (26. Qxe5 Ng4 27. Qb2 exf2+ 28. Kh1 fxe1=N 29. Rxe1 Rc7 $17) 26... Rxe3 {[%emt 0:09:39]} 27. fxe3 {[%emt 0:00:07]} Qe7 {[%emt 0:00:32]} 28. e4 {[%emt 0:01:24]} g5 {[%emt 0:23:32]} 29. Ne2 {[%emt 0:01:44]} c5 {[%emt 0:00:08]} 30. bxc5 {[%emt 0:02:33]} bxc5 {[%emt 0:00:08]} 31. Rf1 {[%emt 0:07:10]} Ng4 {[%emt 0:01:27]} 32. Bh3 {[%emt 0:02:27]} h5 {[%emt 0:00:01]} 33. Bxg4 {[%emt 0:00:55]} hxg4 {[%emt 0:00:01]} 34. Nc3 {[%emt 0:02:05]} (34. Rf5 $5 {[%cal Rf5e5]} Rc6 35. Nc3 $16) 34... Rd8 {[%emt 0:01:59]} 35. Qb3 {[%emt 0:03:35]} Rd4 {[%emt 0:03:47]} 36. Rf5 {[%emt 0:01:05]} c4 {[%emt 0:06:52]} (36... Rxd3 37. Nd5 Bxd5 38. Qxd3 $14) 37. Qb6 {[%emt 0:04:14]} Rd6 $1 {[%emt 0:00:53]} (37... Rxd3 $2 38. Qh6 $1 Rd6 39. Rxg5+ Rg6 40. Rxg6+ fxg6 41. Qxg6+ Qg7 42. Qe6+ Kh8 43. Qxc4 $18) 38. Qc5 {[%emt 0:00:49]} cxd3 {[%emt 0:00:23]} 39. Re5 {[%emt 0:02:35]} Qf6 {[%emt 0:00:59]} 40. Rxg5+ {[%emt 0:01:52]} Kh8 {[%emt 0:00:28]} 41. Rf5 {[%emt 0:13:53]} Qd4+ {[%emt 0:02:32]} 42. Qxd4+ {[%emt 0:00:09]} Rxd4 {[%emt 0:00:06]} 43. Rxf7 {[%emt 0:00:39]} Bxe4 {[%emt 0:00:35]} (43... Bc6 $1 $15 44. Kf2 Rc4) 44. Rf4 {[%emt 0:04:40]} d2 {[%emt 0:00:08]} 45. Kf2 {[%emt 0:00:14]} Rd3 $1 {[%emt 0:02:39]} 46. Rxe4 {[%emt 0:00:57]} Rxc3 {[%emt 0:00:02]} 47. Ke2 {[%emt 0:00:43]} Ra3 $1 {[%emt 0:04:36]} 48. Rxg4 {[%emt 0:01:19]} Rxa2 {[%emt 0:00:03]} 49. h3 {[%emt 0:01:51]} a5 {[%emt 0:04:36]} 50. Rd4 {[%emt 0:01:19]} Ra3 {[%emt 0:01:46]} 51. Rh4+ {[%emt 0:00:08]} Kg7 {[%emt 0:00:06]} 52. Rg4+ {[%emt 0:00:05]} Kh6 {[%emt 0:03:20]} 53. Kxd2 {[%emt 0:00:07]} a4 {[%emt 0:00:30]} 54. h4 {[%emt 0:02:39]} Rb3 {[%emt 0:02:59]} 55. Ke2 {[%emt 0:01:55]} a3 {[%emt 0:00:08]} 56. Kf2 {[%emt 0:01:37]} Rb2+ {[%emt 0:00:07]} (56... a2 $5 57. Ra4 $8 Rb2+ 58. Kf3 Kg6 $16) 57. Kf3 {[%emt 0:00:17]} a2 {[%emt 0:03:46]} 58. Ra4 {[%emt 0:00:06]} Rb3+ {[%emt 0:00:09]} 59. Kg2 {[%emt 0:00:06]} Rb2+ {[%emt 0:00:16]} 60. Kh3 {[%emt 0:00:07]} (60. Kf3 $6 Kh5 61. Ra5+ Kh6 $16) 60... Kg6 {[%emt 0:00:22]} 61. Ra5 {[%emt 0:01:10]} Rc2 {[%emt 0:01:03]} 62. h5+ {[%emt 0:00:54]} (62. Kg4 $6 Kh7 63. Ra7+ Kg6 64. Ra6+ Kg7 $16) 62... Kh6 {[%emt 0:02:37]} 63. Kh4 {[%emt 0:00:34]} Rh2+ {[%emt 0:10:35]} 64. Kg4 {[%emt 0:00:09]} Rb2 {[%emt 0:00:05]} 65. Ra6+ {[%emt 0:00:26]} Kg7 66. Kg5 {[%emt 0:01:15]} Rb5+ {[%emt 0:00:28]} 67. Kh4 {[%emt 0:00:19]} Rb4+ $2 {[%emt 0:01:09][%mdl 8192]} (67... Rb2 $11) 68. g4 $1 {[%emt 0:00:42]} ({Not} 68. Kg5 Rb5+ 69. Kg4 Rb2 $14) 68... Rb2 {[%emt 0:00:04]} 69. h6+ $1 {[%emt 0:01:02]} Kh7 {[%emt 0:00:41] [#]} 70. Kh5 $1 {[%emt 0:00:21]} ({Worse is} 70. Kg5 Rb5+ 71. Kh4 (71. Kf4 Rb4+ 72. Kg5 Rb5+ 73. Kh4 Rb6 $11) 71... Rb6 72. Ra7+ Kxh6 $11) 70... Rh2+ $2 {[%emt 0:08:06][%mdl 8192]} (70... Rc2 $11 71. Ra7+ Kg8) 71. Kg5 {[%emt 0:00:09]} Rb2 {[%emt 0:00:06]} 72. Ra7+ {[%emt 0:00:17]} Kg8 {[%emt 0:00:05]} 73. Kh5 {[%emt 0:01:28]} Rb5+ {[%emt 0:00:30]} 74. g5 {[%emt 0:00:09]} Rb2 {[%emt 0:00:04]} 75. g6 {[%emt 0:04:10]} Rh2+ {[%emt 0:00:28]} 76. Kg5 {[%emt 0:00:06]} Rg2+ {[%emt 0:00:07] [#]} 77. Kf5 $2 {[%emt 0:00:13]} (77. Kf6 $1 {mates} Rf2+ 78. Ke5 Re2+ 79. Kf6 Rf2+ 80. Kg5 Rg2+ 81. Kf5 Rf2+ 82. Ke4) 77... Rf2+ $2 {[%emt 0:00:05][%mdl 8192]} (77... a1=R $11 78. Rxa1 Rf2+ 79. Kg5 Rg2+ 80. Kf5 Rf2+ 81. Ke4 Re2+ 82. Kf3 Re8) 78. Ke4 {[%emt 0:00:21]} Re2+ {[%emt 0:00:04]} 79. Kf3 {[%emt 0:00:32]} Re8 {[%emt 0:00:06]} 80. Rxa2 {[%emt 0:00:07]} Rd8 {[%emt 0:00:02]} 81. Kg4 {[%emt 0:00:51]} Rf8 {[%emt 0:00:32]} 82. Kg5 {[%emt 0:00:09]} Rb8 {[%emt 0:00:05]} 83. Rf2 {[%emt 0:00:14]} Ra8 {[%emt 0:00:06]} 84. g7 {[%emt 0:01:10]} Rb8 {[%emt 0:00:17]} 85. Rf8+ {[%emt 0:00:14]} Rxf8 {[%emt 0:00:08]} 86. Kg6 {[%emt 0:00:06]} 1-0

[Event "German Bundesliga 2022-23"]
[Site "Germany"]
[Date "2022.10.23"]
[Round "2.6"]
[White "Boensch, Uwe"]
[Black "Bezold, Michael"]
[Result "1/2-1/2"]
[ECO "A41"]
[WhiteElo "2466"]
[BlackElo "2481"]
[Annotator "TA"]
[PlyCount "91"]
[EventDate "2022.10.21"]
[EventType "team-tourn"]
[EventCountry "GER"]
[SourceTitle "playchess.com"]
[Source "ChessBase"]
[SourceQuality "1"]
[TimeControl "40/6000+30:3000+30"]

{[%evp 9,91,55,79,74,87,84,88,76,88,77,100,81,89,81,58,59,91,84,83,83,125,85,89,72,98,66,54,62,58,52,49,72,126,116,107,105,116,36,43,0,0,0,8,14,22,23,40,40,40,40,41,47,47,35,35,35,43,43,43,43,43,43,44,43,43,43,43,43,43,43,43,44,47,49,49,49,49,0,50,50,51,51,52,54]} 1. d4 {[%emt 0:00:05]} d6 {[%emt 0:00:30]} 2. Nf3 {[%emt 0:00:22]} Bg4 {[%emt 0:01:02]} 3. c4 {[%emt 0:00:16]} Nd7 {[%emt 0:00:50]} 4. g3 {[%emt 0:00:23]} Bxf3 {[%emt 0:04:03]} 5. exf3 {[%emt 0:00:09][%cal Be2f3,Bf3f4][%mdl 32]} e5 {[%emt 0:00:09]} 6. Bg2 {[%emt 0:01:07] A41: 1 d4 d6: Tartakower System and Modern Defence.} Ngf6 {[%emt 0:01:07]} 7. O-O {[%emt 0:00:17]} Be7 {[%emt 0:01:42]} 8. f4 {[%emt 0:06:55] White is better.} c6 {[%emt 0:00:59]} 9. Nc3 {[%emt 0:08:38] [#]} O-O $146 {[%emt 0:00:42]} ({Predecessor:} 9... exd4 10. Qxd4 O-O 11. b3 Re8 12. Bb2 Bf8 13. Rad1 Qb6 14. Qd2 Nc5 15. Qc2 Nfd7 {1-0 (46) Nogueiras Santiago,J (2510)-Larochelle,M North Bay 1998}) 10. Be3 {[%emt 0:05:50]} Re8 {[%emt 0:12:36]} 11. fxe5 {[%emt 0:07:51]} dxe5 {[%emt 0:00:15]} 12. d5 {[%emt 0:00:10]} Qc7 {[%emt 0:03:03]} 13. Rc1 {[%emt 0:03:05]} a5 {[%emt 0:09:20]} 14. a3 {[%emt 0:08:53]} Rac8 {[%emt 0:07:28]} 15. Re1 {[%emt 0:08:09]} h6 {[%emt 0:02:58]} 16. h3 {[%emt 0:21:32]} Bf8 {[%emt 0:06:39]} 17. Re2 {[%emt 0:00:32]} Red8 {[%emt 0:05:02]} 18. Rd2 {[%emt 0:02:18]} cxd5 {[%emt 0:07:24]} 19. Nxd5 {[%emt 0:00:50]} Nxd5 {[%emt 0:00:35]} 20. Rxd5 {[%emt 0:00:19]} (20. Bxd5 {is more complex.} Bc5 21. Qh5 Bxe3 22. Qxf7+ Kh8 23. fxe3 e4 24. Be6) 20... Nb6 {[%emt 0:07:17]} (20... Bc5 $142) 21. Rxd8 $16 {[%emt 0:03:42] White is more active.} Rxd8 {[%emt 0:00:15]} 22. Qf3 {[%emt 0:03:56]} Rd7 {[%emt 0:03:30]} (22... Nxc4 $2 23. a4 $18 (23. Qxb7 Qxb7 24. Bxb7 Nxb2 $15)) 23. c5 {[%emt 0:07:53]} (23. Qg4 $16 {Strongly threatening Bxb6.} Rd8 24. c5) 23... Nd5 $14 {[%emt 0:00:42]} 24. Rd1 {[%emt 0:05:15]} Nxe3 {[%emt 0:02:12]} 25. Rxd7 {[%emt 0:00:05]} Qxd7 {[%emt 0:00:04]} 26. Qxe3 $11 {[%emt 0:00:06][%mdl 4096] Endgame KQB-KQB} Qd1+ {[%emt 0:08:37]} 27. Kh2 {[%emt 0:00:08]} Qd4 {[%emt 0:00:33] Against b4} 28. Qxd4 {[%emt 0:00:57]} exd4 $14 {[%emt 0:00:09] KB-KB} 29. b4 {[%emt 0:00:15]} axb4 {[%emt 0:00:09]} 30. axb4 {[%emt 0:00:04]} b6 {[%emt 0:00:15]} 31. c6 {[%emt 0:01:07] [#] Intending c7 and mate.} Bd6 {[%emt 0:00:30]} 32. Bf1 {[%emt 0:03:56]} Kf8 {[%emt 0:02:57]} 33. Kg2 {[%emt 0:00:39]} Ke7 {[%emt 0:00:16]} 34. b5 {[%emt 0:00:07]} f5 {[%emt 0:04:17]} 35. Kf3 {[%emt 0:02:04]} Kf6 {[%emt 0:02:48]} 36. Ke2 {[%emt 0:01:54]} g5 {[%emt 0:03:32]} 37. Kd3 {[%emt 0:01:24]} Ke5 {[%emt 0:02:46]} 38. Bg2 {[%emt 0:02:38]} Bc7 {[%emt 0:00:56]} 39. Bf3 {[%emt 0:02:09]} Bb8 {[%emt 0:04:02]} 40. Kc4 {[%emt 0:02:07]} Bc7 {[%emt 0:01:30]} 41. Bd1 {[%emt 0:51:06]} Bb8 {[%emt 0:51:17]} 42. Bc2 {[%emt 0:00:32]} Bc7 {[%emt 0:01:13]} 43. Kd3 {[%emt 0:00:00]} (43. Bd3 $14) 43... Bb8 {[%emt 0:00:00]} (43... Kd5 $11) 44. Bb3 {[%emt 0:00:00] White is slightly better.} Bc7 {[%emt 0:00:00]} 45. Bg8 {[%emt 0:00:00]} Bb8 {[%emt 0:00:00]} 46. Bc4 {[%emt 0:00:00] Weighted Error Value: White=0.09 (flawless) /Black=0.08 (flawless)} 1/2-1/2

[Event "German Bundesliga 2022-23"]
[Site "Germany"]
[Date "2022.10.23"]
[Round "2.6"]
[White "Cioara, Andrei-Nestor"]
[Black "Costa, Leonardo"]
[Result "1-0"]
[ECO "E06"]
[WhiteElo "2407"]
[BlackElo "2350"]
[Annotator "TA"]
[PlyCount "129"]
[EventDate "2022.10.21"]
[EventType "team-tourn"]
[EventCountry "GER"]
[SourceTitle "playchess.com"]
[Source "ChessBase"]
[SourceQuality "1"]
[TimeControl "40/6000+30:3000+30"]

{[%evp 19,129,0,0,-6,0,-4,52,39,63,22,29,29,33,22,33,39,68,58,106,117,204,197,210,197,127,120,127,112,106,96,135,135,135,135,136,122,137,159,158,158,157,104,220,220,387,198,369,320,1724,1684,2255,2311,2318,2318,2318,2311,2387,2387,2220,1922,2157,85,85,85,1406,1313,1115,87,1080,802,793,771,681,609,518,486,404,86,1320,0,227,0,1256,1185,2493,2426,2279,2178,1532,1496,2915,2731,930,96,3839,3047,3021,2681,29937,12848,12386,12334,9907,7122,12410,12471,6737,6691,6175,6175,5206,701]} 1. d4 {[%emt 0:00:03]} d5 {[%emt 0:00:06]} 2. c4 {[%emt 0:00:38]} e6 {[%emt 0:00:04]} 3. Nf3 {[%emt 0:00:04]} Nf6 {[%emt 0:00:11]} 4. g3 {[%emt 0:00:04]} Be7 {[%emt 0:00:05]} 5. Bg2 {[%emt 0:00:04]} O-O {[%emt 0:00:11]} 6. O-O {[%emt 0:00:10]} c6 {[%emt 0:00:07]} 7. Nbd2 {[%emt 0:01:10]} b6 {[%emt 0:01:15]} 8. Qc2 {[%emt 0:01:06]} Bb7 {[%emt 0:00:07]} 9. e4 {[%emt 0:00:14]} Na6 {[%emt 0:00:13]} 10. e5 {[%emt 0:15:18]} Nd7 {[%emt 0:00:42]} 11. a3 {[%emt 0:02:06] E06: Closed Catalan: Early deviations.} c5 {[%emt 0:04:06]} 12. dxc5 {[%emt 0:02:05]} Naxc5 {[%emt 0:02:22]} ({Black should try} 12... bxc5 $11 13. Re1 Nc7) 13. b4 $14 {[%emt 0:00:13] White is slightly better.} Ne4 {[%emt 0:00:13]} 14. Bb2 {[%emt 0:03:11]} Nxd2 {[%emt 0:02:24]} 15. Nxd2 {[%emt 0:02:55] [#]} Rc8 $146 {[%emt 0:09:52]} ({Predecessor:} 15... Qc7 16. Rfc1 Rac8 17. Qa4 Bc6 18. Qb3 d4 19. Bxc6 Qxc6 20. Bxd4 Rfd8 21. Qe3 a5 {1-0 (53) Gledura,B (2621)-Lenderman,A (2626) Saint Louis 2018}) 16. Qd1 {[%emt 0:06:08]} Nb8 {[%emt 0:16:50]} 17. Qg4 {[%emt 0:09:52]} a5 {[%emt 0:18:56]} 18. Rfd1 {[%emt 0:04:42]} axb4 {[%emt 0:06:51]} (18... Rc7 $14) 19. axb4 $16 {[%emt 0:00:07]} Bxb4 {[%emt 0:14:18]} (19... Rc7 $16 {keeps fighting.}) 20. cxd5 $18 {[%emt 0:03:27]} Bxd2 {[%emt 0:00:03]} 21. Rxd2 {[%emt 0:00:12] Ra7 is the strong threat.} Bxd5 {[%emt 0:02:46]} 22. Bxd5 {[%emt 0:11:25] This bishop pair is nice.} Qd7 {[%emt 0:00:08][%mdl 64] [#] Prevents Ra7. Pin} 23. Ra4 $1 {[%emt 0:32:25]} Rcd8 {[%emt 0:19:49] [#]} 24. Rb4 $1 {[%emt 0:07:48]} exd5 {[%emt 0:06:01] [#]} (24... b5 25. Rd3) 25. Qxg7+ $3 {[%emt 0:00:16][%mdl 576] Decoy} Kxg7 {[%emt 0:00:03]} 26. e6+ $1 {[%emt 0:00:04][%mdl 64] Discovered Attack} f6 {[%emt 0:00:52]} 27. exd7 {[%emt 0:00:19] White has more active pieces.} Nxd7 {[%emt 0:04:19]} 28. Rxd5 {[%emt 0:00:08]} Ne5 {[%emt 0:01:03] Against Rg4+} 29. Rxd8 {[%emt 0:01:14]} Rxd8 {[%emt 0:00:02]} 30. Rxb6 {[%emt 0:00:06]} (30. Bxe5 $142 fxe5 31. Rxb6) 30... Rd2 {[%emt 0:00:18]} (30... Rd5 $16 31. Kf1 Kg6) 31. Bxe5 {[%emt 0:04:35]} fxe5 {[%emt 0:00:04][%mdl 4096] Endgame KR-KR} (31... Rd1+ 32. Kg2 fxe5) 32. Kg2 {[%emt 0:01:11]} (32. Rb7+ $142 Kg6 33. h4) 32... Ra2 $2 {[%emt 0:01:35]} (32... Rd1 {was necessary.} 33. h4 Rd5 34. Rb7+ Kg6) 33. h4 {[%emt 0:00:53][%cal Bh2h4,Bh4h5][%mdl 32]} h6 $2 {[%emt 0:00:30]} (33... Ra5 34. Kf3 h5) 34. h5 {[%emt 0:00:19]} Rc2 {[%emt 0:00:29]} 35. Rg6+ {[%emt 0:00:10]} Kh7 {[%emt 0:00:03]} 36. Re6 {[%emt 0:01:11]} Rc5 {[%emt 0:00:03]} 37. Re7+ {[%emt 0:00:22]} Kg8 {[%emt 0:00:04]} 38. g4 {[%emt 0:00:50]} Ra5 {[%emt 0:00:20]} 39. f3 {[%emt 0:00:32]} Ra2+ {[%emt 0:00:13]} 40. Kg3 $2 {[%emt 0:00:05]} (40. Kf1 $18 Kf8 41. Rxe5) 40... Re2 $16 {[%emt 0:01:39]} 41. Ra7 {[%emt 0:05:10] Hoping for Ra4.} Rb2 $2 {[%emt 0:03:05][%mdl 8192]} (41... e4 $16) 42. Ra1 {[%emt 0:05:43]} Kg7 {[%emt 0:02:04]} 43. Rf1 $2 {[%emt 0:01:54]} (43. Ra6 $18 {has better winning chances.} Rd2 44. Re6) 43... Kf6 $2 {[%emt 0:06:52][%mdl 8192]} (43... Re2 $16 44. Ra1 e4 45. Ra7+ Kh8) 44. Rf2 {[%emt 0:00:05]} Rb3 {[%emt 0:00:41]} 45. Re2 {[%emt 0:00:03]} Ra3 {[%emt 0:00:13]} 46. Kf2 {[%emt 0:00:12]} Rb3 {[%emt 0:01:09]} 47. Kg2 {[%emt 0:05:54]} Ra3 {[%emt 0:01:09]} 48. Rb2 $2 {[%emt 0:01:30]} (48. Re4 $18 Ra1 49. Re2) 48... Kg5 $2 {[%emt 0:12:51][%mdl 8192]} (48... e4 $16) 49. Re2 $2 {[%emt 0:08:25]} (49. Rb5 $1 Kf4 50. Rb4+ Kg5 51. Kg3) 49... Kf6 $18 {[%emt 0:00:20]} 50. Rb2 $2 {[%emt 0:05:31]} (50. Kg3) 50... Kg5 {[%emt 0:00:42][%cal Oe5e4] [#]} 51. Rb5 $1 {[%emt 0:01:18] aiming for Kg3.} Ra2+ {[%emt 0:01:23]} 52. Kg3 {[%emt 0:00:21] Rb6 would kill now.} Kf6 {[%emt 0:00:05]} 53. Rb7 {[%emt 0:01:22]} Ra3 {[%emt 0:01:58]} 54. Rb6+ {[%emt 0:01:27]} Kg7 {[%emt 0:00:04]} 55. Re6 {[%emt 0:00:04]} Ra5 {[%emt 0:00:06]} 56. Kf2 $2 {[%emt 0:00:02]} (56. Re7+ $18 {is more deadly.} Kf8 57. Re6) 56... Rb5 $2 {[%emt 0:01:40][%mdl 8192]} (56... Ra2+ $16 57. Ke3 Ra3+ 58. Ke4 Rb3 59. Rxe5 Kf6) 57. Ke3 {[%emt 0:00:10]} Ra5 {[%emt 0:00:09]} 58. Ke4 {[%emt 0:00:05]} Ra4+ {[%emt 0:00:14]} 59. Kxe5 {[%emt 0:00:08] White threatens Kf5 and mate.} Ra3 {[%emt 0:00:03] White is clearly winning.} 60. f4 {[%emt 0:00:29] Threatening mate with Rg6+.} Ra5+ {[%emt 0:00:11]} 61. Ke4 {[%emt 0:00:12]} Ra4+ {[%emt 0:00:03]} 62. Kf5 {[%emt 0:00:05]} Ra5+ {[%emt 0:00:06] [#]} 63. Re5 $1 {[%emt 0:00:04]} Ra7 {[%emt 0:00:03]} 64. g5 {[%emt 0:00:53]} Ra8 {[%emt 0:00:18]} 65. Ke4 {[%emt 0:00:18] Weighted Error Value: White=1.16/Black=0.54} (65. Re7+ $142 Kf8 66. Re6 hxg5 67. fxg5) 1-0